[Event "Oberliga Wuerttemberg 2023-24"]
[Site "Wuerttemberg"]
[Date "2024.04.14"]
[Round "9.1"]
[White "Sinz, Bernhard"]
[Black "Schnepp, Gunnar"]
[Result "1-0"]
[ECO "B23"]
[WhiteElo "2336"]
[BlackElo "2233"]
[Annotator "TA"]
[PlyCount "81"]
[EventDate "2024.03.14"]
[EventType "team-tourn"]
[EventCountry "GER"]
[SourceTitle "playchess.com"]
[Source "ChessBase"]
[SourceQuality "1"]
[TimeControl "40/5400+30:1800+30"]

{[%evp 9,81,0,9,0,0,0,0,0,0,0,14,0,22,35,26,-26,0,0,0,-29,-12,-55,-39,-30,-22,-49,-57,-43,-32,-107,-66,-438,-436,-433,-372,-422,-452,-449,-427,-791,-796,-741,-589,-572,-591,-566,-199,-161,0,0,0,0,0,0,130,0,1092,427,359,345,1215,739,1112,1016,931,874,29968,961,29970,29973,29974,29975,29971,29974]} 1. e4 {[%emt 0:00:03]} c5 {[%emt 0:00:02]} 2. Nc3 {[%emt 0:00:12]} d6 {[%emt 0:00:40]} 3. d4 {[%emt 0:00:15]} cxd4 {[%emt 0:00:24]} 4. Qxd4 {[%emt 0:00:08]} Nc6 {[%emt 0:00:29]} 5. Qd2 {[%emt 0:00:11]} Nf6 {[%emt 0:11:20]} 6. b3 {[%emt 0:03:33]} a6 {[%emt 0:00:51]} 7. Bb2 {[%emt 0:00:40]} e6 {[%emt 0:00:45]} 8. O-O-O {[%emt 0:00:44] The position is equal.} b5 {[%emt 0:02:29]} 9. f3 {[%emt 0:01:31]} Bb7 {[%emt 0:13:04]} 10. Kb1 {[%emt 0:03:10]} Qc7 {[%emt 0:10:56]} 11. g4 {[%emt 0:19:49]} h6 {[%emt 0:03:35]} 12. a4 {[%emt 0:06:49]} (12. Nge2 $142) 12... b4 {[%emt 0:22:41]} 13. Na2 {[%emt 0:06:10]} O-O-O {[%emt 0:00:37]} 14. Qe1 {[%emt 0:22:20][%cal Of1c4]} d5 {[%emt 0:05:08]} 15. e5 {[%emt 0:02:49]} Nd7 {[%emt 0:00:05]} 16. f4 {[%emt 0:00:15]} g5 $36 {[%emt 0:02:00][%mdl 2048] Black has the initiative.} 17. fxg5 {[%emt 0:00:23]} Ndxe5 {[%emt 0:01:38]} 18. gxh6 {[%emt 0:02:13]} Bxh6 {[%emt 0:05:59]} (18... Rxh6 19. g5 Rh8 20. Bg2 $14) 19. h3 {[%emt 0:12:02]} (19. Be2 $15) 19... d4 $17 {[%emt 0:02:28]} 20. Bg2 $2 {[%emt 0:11:44][%mdl 8192] [#]} (20. Nc1 $15) 20... d3 $19 {[%emt 0:01:29]} 21. cxd3 {[%emt 0:02:43]} Rxd3 {[%emt 0:00:15]} 22. Nc1 {[%emt 0:03:11]} Rxd1 {[%emt 0:01:29]} 23. Qxd1 {[%emt 0:00:02]} Rd8 {[%emt 0:01:03]} 24. Qc2 {[%emt 0:00:57] White is weak on the dark squares} (24. Qe1 $142 Bxc1 25. Bxe5 Nxe5 (25... Qxe5 $2 26. Qxe5 Nxe5 27. Bxb7+ Kxb7 28. Kxc1 $19) 26. Bxb7+ Kxb7 27. Qxc1) 24... Rd2 {[%emt 0:00:00]} 25. Qh7 {[%emt 0:00:22]} Rxb2+ {[%emt 0:01:20]} 26. Kxb2 {[%emt 0:00:02]} Bxc1+ {[%emt 0:00:08] This pair of bishops is nice.} 27. Kb1 {[%emt 0:00:44]} Nd4 {[%emt 0:05:05] Against Nf3} (27... Ng6 28. Ne2 Be3) 28. Bxb7+ {[%emt 0:00:03]} Qxb7 $2 {[%emt 0:01:09]} (28... Kxb7 $19 29. Qe4+ Nec6) 29. Qh8+ $11 {[%emt 0:00:14]} Kd7 {[%emt 0:00:29]} 30. Qxe5 {[%emt 0:00:01]} Nxb3 {[%emt 0:00:46]} 31. Rh2 {[%emt 0:01:31] [#] Black must now prevent Rf2. The board is on fire.} Bh6 {[%emt 0:02:39]} (31... f6 $1 $11 {keeps the balance.} 32. Qg3 (32. Qxf6 Qe4+ 33. Ka2 Bf4 $17) 32... Qe4+ 33. Rc2 Nd4 34. Qc7+ Ke8 35. Kxc1 Qe3+ (35... Qxc2+ $2 36. Qxc2 Nxc2 37. Kxc2 $18) 36. Kb2 Nxc2 (36... Qxg1 37. Qb8+ Kd7 38. Rc7+ Kd6 39. Rc1+ Ke7 40. Qb7+ Kd6 41. Qxb4+ Kd7 42. Qb7+ Kd6 43. Qxa6+ Ke5 44. Rxg1) 37. Qc6+ Kf7 38. Qxc2 Qxg1) 32. g5 {[%emt 0:00:15]} (32. Kb2 $16 Nd2 33. Qd4+ Ke8 34. Rxd2 Bxd2 35. Qxd2) 32... Qb6 $2 {[%emt 0:03:46][%mdl 8192]} (32... Bf8 $11 33. Rf2 Qc6) 33. Nf3 {[%emt 0:00:29]} (33. gxh6 $142 Qxg1+ 34. Kc2) 33... Bf8 $18 {[%emt 0:00:27]} 34. Rc2 {[%emt 0:00:48] aiming for Qf6.} Qb7 $2 {[%emt 0:01:36]} (34... Bd6 35. Qf6 Qe3 36. Qxf7+ Kd8) 35. Qe3 {[%emt 0:00:21]} Na5 {[%emt 0:00:33]} 36. Ne5+ {[%emt 0:00:25]} Ke8 {[%emt 0:00:13]} 37. g6 {[%emt 0:00:48]} fxg6 {[%emt 0:00:23]} 38. Nxg6 {[%emt 0:00:08]} (38. Qd3 $142 Bh6 39. Qxg6+ (39. Nxg6 $2 {is the wrong capture.} Qh1+ 40. Ka2 b3+ 41. Ka3 bxc2 $19) 39... Ke7 40. Qxh6 (40. Nc6+ Qxc6 41. Rxc6 Nxc6 $18) 40... Qh1+ 41. Kb2 Nc4+ 42. Nxc4 (42. Rxc4 Qh2+ 43. Kb1 Qh1+ 44. Qc1 Qxc1+ 45. Rxc1 Kf6 $18) 42... Qf3 43. Qg7+ Qf7 44. Qd4) 38... Qd7 {[%emt 0:00:53]} 39. Nxf8 {[%emt 0:01:01] White mates.} Kxf8 {[%emt 0:00:32]} 40. Qf4+ {[%emt 0:00:26]} Ke8 {[%emt 0:00:31]} 41. Qb8+ {[%emt 0:30:14] Weighted Error Value: White=0.85/Black=0.96.  Loses game:     	White=1     	Black=1      Missed win:     	---       	Black=1      Mistake:       	White=5     	Black=3      Inaccurate:     	White=4     	Black=2      OK:         	White=12    	Black=7      Best:        	White=3     	Black=6} 1-0

[Event "Oberliga Wuerttemberg 2023-24"]
[Site "Wuerttemberg"]
[Date "2024.04.14"]
[Round "9.2"]
[White "Ramirez Marin, Ivan"]
[Black "Fischer, Andre"]
[Result "1-0"]
[ECO "E49"]
[WhiteElo "2271"]
[BlackElo "2248"]
[Annotator "RC"]
[PlyCount "199"]
[EventDate "2024.03.14"]
[EventType "team-tourn"]
[EventCountry "GER"]
[SourceTitle "playchess.com"]
[Source "ChessBase"]
[SourceQuality "1"]
[TimeControl "40/5400+30:1800+30"]

1. d4 {[%emt 0:00:04]} Nf6 {[%emt 0:00:18]} 2. c4 {[%emt 0:00:06]} e6 {[%emt 0:00:04]} 3. Nc3 {[%emt 0:00:16]} Bb4 {[%emt 0:00:16]} 4. e3 {[%emt 0:00:44]} d5 {[%emt 0:00:55]} 5. a3 {[%emt 0:00:10]} Bxc3+ {[%emt 0:00:10]} 6. bxc3 {[%emt 0:00:02]} c5 {[%emt 0:00:13]} 7. cxd5 {[%emt 0:00:17]} exd5 {[%emt 0:00:07]} 8. Bd3 {[%emt 0:01:09]} O-O {[%emt 0:00:16]} 9. Ne2 {[%emt 0:00:13]} b6 {[%emt 0:00:12]} 10. O-O {[%emt 0:01:29]} Ba6 {[%emt 0:00:22]} 11. Bxa6 {[%emt 0:13:27]} Nxa6 {[%emt 0:00:06]} 12. f3 {[%emt 0:00:15]} Re8 {[%emt 0:01:03]} 13. Ng3 {[%emt 0:02:04]} Nb8 {[%emt 0:06:13]} 14. Ra2 {[%emt 0:01:44]} Nc6 {[%emt 0:00:59]} 15. Re2 {[%emt 0:00:44]} Qd7 {[%emt 0:01:21]} 16. Qd3 {[%emt 0:11:19]} Rad8 {[%emt 0:10:38]} 17. Bb2 {[%emt 0:04:52]} h5 {[%emt 0:00:36]} 18. Nh1 {[%emt 0:04:44]} Re6 {[%emt 0:06:38]} 19. Nf2 {[%emt 0:00:49]} Qe7 {[%emt 0:13:57]} 20. a4 {[%emt 0:08:12]} c4 {[%emt 0:09:16]} 21. Qd2 {[%emt 0:02:22]} Re8 {[%emt 0:05:57]} 22. Rfe1 {[%emt 0:01:52]} Qd7 {[%emt 0:00:08]} 23. e4 {[%emt 0:05:39]} Ne7 {[%emt 0:02:52]} 24. e5 {[%emt 0:00:38]} Nh7 {[%emt 0:00:11]} 25. Qc2 {[%emt 0:01:11]} Nf8 {[%emt 0:15:59]} 26. Ba3 {[%emt 0:01:33]} Nfg6 {[%emt 0:04:22]} 27. Nh3 {[%emt 0:00:44]} Rc6 {[%emt 0:04:12]} 28. Bxe7 {[%emt 0:08:44]} Rxe7 {[%emt 0:05:54]} 29. Ng5 {[%emt 0:02:04]} Nf8 {[%emt 0:00:07]} 30. f4 {[%emt 0:01:34]} g6 {[%emt 0:02:46]} 31. Rf1 {[%emt 0:05:44]} Qf5 {[%emt 0:00:42]} 32. Qxf5 {[%emt 0:00:28]} gxf5 {[%emt 0:00:05]} 33. Nf3 {[%emt 0:00:16]} Ng6 {[%emt 0:00:16]} 34. g3 {[%emt 0:00:32]} Rb7 {[%emt 0:00:26]} 35. Rb2 {[%emt 0:00:34]} Kf8 {[%emt 0:08:52]} 36. Rfb1 {[%emt 0:05:00]} a6 {[%emt 0:00:08]} 37. Nd2 {[%emt 0:00:37]} Ne7 {[%emt 0:00:09]} 38. Nf1 {[%emt 0:00:50]} Ke8 {[%emt 0:00:49]} 39. Ne3 {[%emt 0:00:20]} Kd7 {[%emt 0:00:58]} 40. Kf2 {[%emt 0:00:38]} Kc7 {[%emt 0:01:14]} 41. h3 {[%emt 0:40:08]} Rb8 {[%emt 0:01:46]} 42. Kf3 {[%emt 0:00:00]} Rh8 {[%emt 0:00:35]} 43. Rg1 {[%emt 0:00:00]} Rg6 {[%emt 0:01:31]} 44. Ng2 {[%emt 0:00:00]} Rb8 {[%emt 0:01:26]} 45. Nh4 {[%emt 0:00:00]} Rh6 {[%emt 0:05:10]} 46. Rgb1 {[%emt 0:00:00]} Rg8 {[%emt 0:03:42]} 47. Kf2 {[%emt 0:00:00]} Rf8 {[%emt 0:02:46]} 48. Nf3 {[%emt 0:00:00]} Nc8 {[%emt 0:01:06]} 49. Ng5 {[%emt 0:00:00]} Kc6 {[%emt 0:01:35]} 50. Re2 {[%emt 0:00:00]} Kd7 {[%emt 0:01:21]} 51. Rbe1 {[%emt 0:00:00]} Ke7 {[%emt 0:01:10]} 52. Kf3 {[%emt 0:00:00]} Rg8 {[%emt 0:03:26]} 53. Rg2 {[%emt 0:01:09]} Rf8 {[%emt 0:00:56]} 54. Ke3 {[%emt 0:01:16]} Kd7 {[%emt 0:00:25]} 55. Ke2 {[%emt 0:01:13]} Ne7 {[%emt 0:01:06]} 56. Kf3 {[%emt 0:00:54]} Nc8 {[%emt 0:02:34]} 57. Rge2 {[%emt 0:00:59]} Ke7 {[%emt 0:00:15]} 58. g4 {[%emt 0:00:21]} hxg4+ {[%emt 0:00:39]} 59. hxg4 {[%emt 0:00:01]} fxg4+ {[%emt 0:00:18]} 60. Kxg4 {[%emt 0:00:04]} Rfh8 {[%emt 0:00:22]} 61. f5 {[%emt 0:01:25]} Rh2 {[%emt 0:06:17]} 62. f6+ {[%emt 0:00:14]} Kf8 {[%emt 0:00:15]} 63. e6 {[%emt 0:03:53]} Rxe2 {[%emt 0:00:47]} 64. Rxe2 {[%emt 0:00:18]} Nd6 {[%emt 0:02:30]} 65. e7+ {[%emt 0:00:25]} Ke8 {[%emt 0:00:05]} 66. Rb2 {[%emt 0:00:35]} Rh6 {[%emt 0:00:09]} 67. Rxb6 {[%emt 0:06:28]} Rxf6 {[%emt 0:00:11]} 68. Rxa6 {[%emt 0:00:12]} Kxe7 {[%emt 0:01:29]} 69. Ra7+ {[%emt 0:00:15]} Ke8 {[%emt 0:00:14]} 70. Ra5 {[%emt 0:00:30]} Rg6 {[%emt 0:00:57]} 71. Kf4 {[%emt 0:00:54]} f6 {[%emt 0:00:27]} 72. Ne6 {[%emt 0:00:41]} Ne4 {[%emt 0:00:20]} 73. Nc7+ {[%emt 0:00:09]} Kd7 {[%emt 0:00:15]} 74. Nxd5 {[%emt 0:00:01]} Nd6 {[%emt 0:00:09]} 75. Ra7+ {[%emt 0:00:09]} Kd8 {[%emt 0:00:21]} 76. Nb6 {[%emt 0:00:17]} Ke8 {[%emt 0:00:40]} 77. Rc7 {[%emt 0:00:35]} Rg1 {[%emt 0:00:39]} 78. Nxc4 {[%emt 0:00:51]} Rf1+ {[%emt 0:00:04]} 79. Ke3 {[%emt 0:00:28]} Nf5+ {[%emt 0:00:27]} 80. Ke4 {[%emt 0:00:13]} Ng3+ {[%emt 0:00:25]} 81. Kd5 {[%emt 0:00:07]} f5 {[%emt 0:00:53]} 82. Ke6 {[%emt 0:01:36]} Kd8 {[%emt 0:00:52]} 83. Rg7 {[%emt 0:00:55]} f4 {[%emt 0:00:28]} 84. Ne5 {[%emt 0:00:18]} Ne4 {[%emt 0:00:36]} 85. a5 {[%emt 0:00:46]} f3 {[%emt 0:00:52]} 86. a6 {[%emt 0:00:19]} f2 {[%emt 0:00:06]} 87. Nd3 {[%emt 0:00:48]} Ra1 {[%emt 0:00:18]} 88. Nxf2 {[%emt 0:00:26]} Rxa6+ {[%emt 0:00:06]} 89. Ke5 {[%emt 0:00:17]} Nxc3 {[%emt 0:00:56]} 90. Nd3 {[%emt 0:00:24]} Ra5+ {[%emt 0:00:56]} 91. Nc5 {[%emt 0:00:19]} Na4 {[%emt 0:00:23]} 92. Kd6 {[%emt 0:00:21]} Ke8 {[%emt 0:00:26]} 93. Re7+ {[%emt 0:00:37]} Kf8 {[%emt 0:00:07]} 94. Re3 {[%emt 0:00:53]} Nb6 {[%emt 0:01:02]} 95. Rf3+ {[%emt 0:00:22]} Kg8 {[%emt 0:00:36]} 96. Ke6 {[%emt 0:00:25]} Ra1 {[%emt 0:00:18]} 97. Rg3+ {[%emt 0:00:22]} Kh7 {[%emt 0:00:38]} 98. Ne4 {[%emt 0:00:47]} Re1 {[%emt 0:00:14]} 99. Kf7 {[%emt 0:00:16]} Kh6 {[%emt 0:00:13]} 100. Rh3# {[%emt 0:00:42]} 1-0

[Event "Oberliga Wuerttemberg 2023-24"]
[Site "Wuerttemberg"]
[Date "2024.04.14"]
[Round "9.3"]
[White "Oberst, Thomas"]
[Black "Peng, Xiang-Tobias"]
[Result "0-1"]
[ECO "D02"]
[WhiteElo "2227"]
[BlackElo "2187"]
[Annotator "TA"]
[PlyCount "92"]
[EventDate "2024.03.14"]
[EventType "team-tourn"]
[EventCountry "GER"]
[SourceTitle "playchess.com"]
[Source "ChessBase"]
[SourceQuality "1"]
[TimeControl "40/5400+30:1800+30"]

{[%evp 13,92,32,24,27,50,27,34,0,8,-20,0,-29,-29,-37,-37,-43,0,0,0,0,0,-29,-31,-23,-26,-20,0,-22,0,-26,-29,-36,-49,-149,-149,-427,-404,-408,-410,-407,-391,-437,-448,-439,-314,-352,-353,-318,-326,-614,-535,-512,-395,-400,-400,-400,-394,-393,-393,-368,-310,-374,-347,-346,-338,-329,-319,-770,-740,-770,-758,-690,-685,-675,-665,-650,-650,-604,-592,-1231,-1231]} 1. Nf3 {[%emt 0:00:04]} d5 {[%emt 0:00:47]} 2. g3 {[%emt 0:00:21]} c5 {[%emt 0:02:43]} 3. Bg2 {[%emt 0:00:15]} Nc6 {[%emt 0:00:08]} 4. d4 {[%emt 0:00:19]} e6 {[%emt 0:16:20]} 5. O-O {[%emt 0:00:29]} cxd4 {[%emt 0:00:23]} 6. Nxd4 {[%emt 0:00:27]} Bc5 {[%emt 0:00:06]} 7. Nxc6 {[%emt 0:01:14]} bxc6 {[%emt 0:00:01] [#]} 8. c4 $1 {[%emt 0:01:06]} Ne7 {[%emt 0:01:54]} (8... Nf6 9. Qc2) 9. Nc3 {[%emt 0:04:46]} O-O {[%emt 0:02:10]} 10. cxd5 {[%emt 0:25:29] White is slightly better.} cxd5 {[%emt 0:00:22]} 11. Bf4 {[%emt 0:02:35]} Ng6 {[%emt 0:00:23]} 12. Bd2 {[%emt 0:00:07]} Rb8 {[%emt 0:03:49][%cal Oc8d7]} 13. Rb1 {[%emt 0:04:00]} Ba6 {[%emt 0:07:08]} 14. a3 {[%emt 0:01:28]} d4 {[%emt 0:03:16]} 15. Na4 {[%emt 0:02:46]} d3 {[%emt 0:00:21]} 16. e3 {[%emt 0:05:51]} (16. Nxc5 $2 {loses.} dxe2 17. Nxa6 exd1=B $19 (17... exd1=Q $2 18. Rfxd1 Rc8 19. Bb4 $19)) 16... Be7 {[%emt 0:02:05]} 17. f4 {[%emt 0:01:32]} Qd7 {[%emt 0:04:32]} 18. b4 {[%emt 0:01:21]} Rfc8 $36 {[%emt 0:01:44][%mdl 2048] Dodges Nc5. White is under pressure.} 19. Nc3 {[%emt 0:09:54]} Bb7 {[%emt 0:08:32]} 20. Bxb7 {[%emt 0:06:03]} Rxb7 {[%emt 0:00:54]} 21. Qf3 {[%emt 0:03:18]} Rbc7 {[%emt 0:02:45]} 22. Rb3 {[%emt 0:00:05]} f5 {[%emt 0:02:17]} 23. b5 {[%emt 0:03:52]} ({Better is} 23. e4 $1 $15) 23... Bf6 $17 {[%emt 0:02:45] Black is more active.} 24. Na4 {[%emt 0:00:42][%mdl 8192] This costs White the game.} (24. Nb1 $17) 24... Rc4 $19 {[%emt 0:01:14]} 25. Rb4 {[%emt 0:03:08]} Rxb4 {[%emt 0:00:27]} 26. axb4 {[%emt 0:00:12]} Qxb5 {[%emt 0:00:02]} 27. Nc5 {[%emt 0:00:02] [#]} a5 $1 {[%emt 0:01:41][%mdl 512]} 28. Nxe6 {[%emt 0:01:40]} (28. Qb7 Qxb7) 28... Rc2 {[%emt 0:04:25]} 29. Rd1 {[%emt 0:06:21]} axb4 {[%emt 0:00:35]} 30. Bxb4 {[%emt 0:03:43]} Qxb4 {[%emt 0:01:06]} 31. Qd5 {[%emt 0:00:11]} (31. Qa8+ Kf7 32. Nd8+ Bxd8 33. Qd5+ Ke7 34. Qxd3) 31... Qe4 {[%emt 0:00:42]} 32. Rxd3 {[%emt 0:00:39]} Qxd5 {[%emt 0:00:35]} 33. Rxd5 {[%emt 0:00:02]} Kf7 {[%emt 0:00:20]} 34. Nd4 {[%emt 0:00:39]} Bxd4 {[%emt 0:00:34]} 35. Rxd4 {[%emt 0:00:31][%mdl 4096] Endgame. KRN-KR} Re2 {[%emt 0:00:48]} 36. Rd3 {[%emt 0:00:15]} Nf8 {[%emt 0:00:41]} 37. h4 {[%emt 0:00:13]} Ne6 {[%emt 0:00:28] White must now prevent ...h5.} 38. Kf1 {[%emt 0:00:08]} Ra2 {[%emt 0:00:10]} 39. Rd7+ {[%emt 0:00:39]} Kf6 {[%emt 0:00:13]} 40. Rd6 $2 {[%emt 0:00:06]} (40. h5) 40... h5 {[%emt 0:00:21] Black is clearly winning.} 41. Rb6 {[%emt 0:30:10]} g6 {[%emt 0:30:36]} 42. Rc6 {[%emt 0:00:32]} Kf7 {[%emt 0:00:17]} 43. Rc4 {[%emt 0:00:43]} Ra5 {[%emt 0:00:56]} 44. e4 {[%emt 0:02:06]} fxe4 {[%emt 0:01:36]} 45. Rxe4 {[%emt 0:00:06]} Ra3 {[%emt 0:00:10]} 46. Kg2 {[%emt 0:00:36]} Ng7 {[%emt 0:00:04] Weighted Error Value: White=0.43/Black=0.19 (very precise) .  Loses game:     	White=1     	---        Mistake:       	White=3     	---        Inaccurate:     	White=5     	Black=1      OK:         	White=8     	Black=16     Best:        	---       	Black=1      Brilliant:      	---       	Black=1} 0-1

[Event "Oberliga Wuerttemberg 2023-24"]
[Site "Wuerttemberg"]
[Date "2024.04.14"]
[Round "9.4"]
[White "Tschlatscher, Thomas"]
[Black "Wunder, Niklas"]
[Result "1-0"]
[ECO "D04"]
[WhiteElo "2217"]
[BlackElo "2071"]
[Annotator "RC"]
[PlyCount "81"]
[EventDate "2024.03.14"]
[EventType "team-tourn"]
[EventCountry "GER"]
[SourceTitle "playchess.com"]
[Source "ChessBase"]
[SourceQuality "1"]
[TimeControl "40/5400+30:1800+30"]

1. b3 {[%emt 0:00:03]} Nf6 {[%emt 0:00:24]} 2. Bb2 {[%emt 0:00:07]} c5 {[%emt 0:00:15]} 3. e3 {[%emt 0:00:35]} Nc6 {[%emt 0:00:17]} 4. Nf3 {[%emt 0:00:14]} g6 {[%emt 0:00:35]} 5. Be2 {[%emt 0:04:56]} Bg7 {[%emt 0:00:27]} 6. O-O {[%emt 0:00:08]} O-O {[%emt 0:02:58]} 7. c4 {[%emt 0:00:21]} d5 {[%emt 0:02:11]} 8. d4 {[%emt 0:08:24]} cxd4 {[%emt 0:03:58]} 9. Nxd4 {[%emt 0:00:59]} Nxd4 {[%emt 0:06:54]} 10. Bxd4 {[%emt 0:01:54]} dxc4 {[%emt 0:06:51]} 11. Bxc4 {[%emt 0:01:09]} b6 {[%emt 0:03:03]} 12. Qe2 {[%emt 0:08:36]} Bb7 {[%emt 0:03:44]} 13. Rd1 {[%emt 0:02:23]} Qc7 {[%emt 0:00:50]} 14. Na3 {[%emt 0:02:17]} Rac8 {[%emt 0:05:52]} 15. Rac1 {[%emt 0:02:40]} Qb8 {[%emt 0:02:00]} 16. f3 {[%emt 0:00:35]} Rfd8 {[%emt 0:02:27]} 17. Qb2 {[%emt 0:08:49]} a6 {[%emt 0:04:54]} 18. b4 {[%emt 0:00:45]} b5 {[%emt 0:01:26]} 19. Bb3 {[%emt 0:01:13]} Rxc1 {[%emt 0:09:57]} 20. Rxc1 {[%emt 0:00:48]} Bd5 {[%emt 0:03:49]} 21. Rc5 {[%emt 0:12:12]} Bxb3 {[%emt 0:01:03]} 22. axb3 {[%emt 0:00:58]} Nh5 {[%emt 0:06:24]} 23. Nc2 {[%emt 0:09:33]} e5 {[%emt 0:01:47]} 24. Bc3 {[%emt 0:17:43]} Qd6 {[%emt 0:07:38]} 25. Ne1 {[%emt 0:01:35]} e4 {[%emt 0:03:21]} 26. Bxg7 {[%emt 0:01:27]} Nxg7 {[%emt 0:00:56]} 27. fxe4 {[%emt 0:00:32]} Qd1 {[%emt 0:03:53]} 28. Rc1 {[%emt 0:00:27]} Qd6 {[%emt 0:02:57]} 29. Qc3 {[%emt 0:01:42]} Ne6 {[%emt 0:00:23]} 30. Nf3 {[%emt 0:00:51]} Rd7 {[%emt 0:06:24]} 31. Qf6 {[%emt 0:03:11]} Qd3 {[%emt 0:08:11]} 32. Rc8+ {[%emt 0:03:23]} Rd8 {[%emt 0:00:00]} 33. Rxd8+ {[%emt 0:01:19]} Nxd8 {[%emt 0:00:00]} 34. Kf2 {[%emt 0:00:42]} Ne6 {[%emt 0:00:24]} 35. Qxf7+ {[%emt 0:00:18]} Kxf7 {[%emt 0:00:10]} 36. Ne5+ {[%emt 0:00:05]} Ke7 {[%emt 0:01:02]} 37. Nxd3 {[%emt 0:00:07]} Kd6 {[%emt 0:00:29]} 38. e5+ {[%emt 0:00:26]} Kd5 {[%emt 0:00:26]} 39. Nf4+ {[%emt 0:00:06]} Kxe5 {[%emt 0:00:14]} 40. Nxe6 {[%emt 0:00:06]} Kxe6 {[%emt 0:00:10]} 41. e4 {[%emt 0:30:13]} 1-0

[Event "Oberliga Wuerttemberg 2023-24"]
[Site "Wuerttemberg"]
[Date "2024.04.14"]
[Round "9.5"]
[White "Weiss, Oliver"]
[Black "Dudek, Richard"]
[Result "1-0"]
[ECO "A47"]
[WhiteElo "2220"]
[BlackElo "2185"]
[Annotator "RC"]
[PlyCount "81"]
[EventDate "2024.03.14"]
[EventType "team-tourn"]
[EventCountry "GER"]
[SourceTitle "playchess.com"]
[Source "ChessBase"]
[SourceQuality "1"]
[TimeControl "40/5400+30:1800+30"]

1. d4 {[%emt 0:00:19]} Nf6 {[%emt 0:00:12]} 2. Bf4 {[%emt 0:00:24]} e6 {[%emt 0:00:44]} 3. e3 {[%emt 0:00:16]} b6 {[%emt 0:00:48]} 4. Nf3 {[%emt 0:02:11]} Bb7 {[%emt 0:00:42]} 5. Be2 {[%emt 0:00:09]} Be7 {[%emt 0:03:06]} 6. O-O {[%emt 0:00:23]} Nh5 {[%emt 0:02:40]} 7. Bg3 {[%emt 0:02:08]} O-O {[%emt 0:00:53]} 8. a4 {[%emt 0:00:33]} Nxg3 {[%emt 0:02:21]} 9. hxg3 {[%emt 0:00:06]} c5 {[%emt 0:03:57]} 10. a5 {[%emt 0:01:35]} bxa5 {[%emt 0:04:21]} 11. Nbd2 {[%emt 0:00:57]} Nc6 {[%emt 0:11:37]} 12. c3 {[%emt 0:01:17]} Qc7 {[%emt 0:14:56]} 13. Qa4 {[%emt 0:02:09]} Rab8 {[%emt 0:07:25]} 14. Nb3 {[%emt 0:03:16]} d6 {[%emt 0:04:04]} 15. Nfd2 {[%emt 0:04:14]} cxd4 {[%emt 0:08:55]} 16. exd4 {[%emt 0:03:31]} Bd8 {[%emt 0:00:16]} 17. Rfe1 {[%emt 0:04:28]} Bc8 {[%emt 0:03:48]} 18. Qa3 {[%emt 0:16:04]} Bd7 {[%emt 0:01:40]} 19. Reb1 {[%emt 0:04:55]} e5 {[%emt 0:07:20]} 20. dxe5 {[%emt 0:04:30]} dxe5 {[%emt 0:00:57]} 21. Bf3 {[%emt 0:01:30]} Be7 {[%emt 0:03:10]} 22. Qa2 {[%emt 0:02:20]} Bf5 {[%emt 0:00:48]} 23. Re1 {[%emt 0:04:34]} Rb5 {[%emt 0:02:36]} 24. Qa4 {[%emt 0:03:38]} Rfb8 {[%emt 0:04:03]} 25. Bxc6 {[%emt 0:02:48]} Qxc6 {[%emt 0:00:04]} 26. Rxe5 {[%emt 0:01:36]} Qd7 {[%emt 0:02:09]} 27. Rxb5 {[%emt 0:07:20]} Rxb5 {[%emt 0:00:07]} 28. c4 {[%emt 0:06:15]} Rb7 {[%emt 0:00:44]} 29. c5 {[%emt 0:03:09]} Qxa4 {[%emt 0:04:00]} 30. Rxa4 {[%emt 0:00:03]} Be6 {[%emt 0:00:19]} 31. c6 {[%emt 0:03:06]} Rb6 {[%emt 0:02:41]} 32. Nxa5 {[%emt 0:00:47]} Rxb2 {[%emt 0:00:40]} 33. Nac4 {[%emt 0:01:00]} Rb8 {[%emt 0:01:41]} 34. Rxa7 {[%emt 0:00:38]} Bc5 {[%emt 0:00:08]} 35. Rb7 {[%emt 0:00:52]} Rc8 {[%emt 0:00:17]} 36. c7 {[%emt 0:01:10]} Kf8 {[%emt 0:00:15]} 37. Ne4 {[%emt 0:01:37]} Ke7 {[%emt 0:00:53]} 38. Nxc5 {[%emt 0:03:01]} Bxc4 {[%emt 0:00:07]} 39. Na4 {[%emt 0:00:52]} Bd5 {[%emt 0:03:50]} 40. Ra7 {[%emt 0:00:53]} Be6 41. Nb6 {[%emt 0:00:15]} 1-0